{"text_format":"1","workbook":"xlsx","n_sheets":5,"sheets":["Cle Co tri","Nomenclature_design_art","Nomenclature_design_art_MS","Generateur Designation","Generateur"],"not_rendered":{"charts":0,"images":1,"macros":1,"external_links":0,"defined_names":66,"comments":0,"pivot_tables":0},"unopened":[],"bounds":{"document_bytes":16777216,"sheet_cells":100000,"rows_first":2000,"rows_last":500,"rows_between":2000,"halvings":0,"cell_chars":16384,"cell_head_chars":4096},"cells_cut":0,"cells_raw":0,"read":"whole","date_system":"1900"}

{"sheet":"Cle Co tri","index":0,"n_rows":145,"n_cols":39,"rows_kept":145,"cut":false,"hidden":false,"merged":[]}
[]
[null,null,null,null,null,null,null,null,null,null,null,null,null,null,null,null,null,null,null,null,null,null,null,null,"ATTENTION : penser a mettre code correspondance quelque part dans les champs pour sql",null,null,null,null,null,"S","T","LCA","ALI","00","075","S","HEL","001"]
[null,null,null,null,null,null,null,null,null,null,null,null,null,null,null,null,null,null,null,null,null,null,null,null,null,null,null,null,null,null,{"$f":"VLOOKUP($AE$2,$AB$6:$AC$8,2)","v":"SANS"},{"$f":"VLOOKUP($AF$2,$AB$9:$AC$13,2)","v":"Tuilé"},{"$f":"VLOOKUP($AG$2,$AB$14:$AC$47,2)","v":"Languedoc Cabrieres"},{"$f":"VLOOKUP($AH$2,$AB$48:$AC$69,2)","v":"Alicante"},{"$f":"VLOOKUP($AI$2,$AB$70:$AC$78,2)","v":"00"},{"$f":"VLOOKUP($AJ$2,$AB$79:$AC$89,2)","v":"75"},{"$f":"VLOOKUP($AK$2,$AB$90:$AC$93,2)","v":"Speciale"},{"$f":"VLOOKUP($AL$2,$AB$94:$AC$133,2)","v":"HELIX"},{"$f":"VLOOKUP($AM$2,$AB$134:$AC$145,2)","v":"001"}]
[null,null,"CO TRI PF VERRE VIM"]
[null,null,null,1,2,3,4,5,6,7,8,9,10,11,12,13,14,15,16,17,18,19,20,null,"Champ","Où ?","Valeurs","Correspondance","Valeurs"]
[null,null,"Bio","X",null,null,null,null,null,null,null,null,null,null,null,null,null,null,null,null,null,null,null,null,"Bio","Zone perso","AB","A","AB"]
[null,null,"Couleur",null,"X",null,null,null,null,null,null,null,null,null,null,null,null,null,null,null,null,null,null,null,null,null,"NOP","N","NOP"]
[null,null,"Appelation",null,null,"X","X","X",null,null,null,null,null,null,null,null,null,null,null,null,null,null,null,null,null,null,"SANS","S","SANS"]
[null,null,"Cepage",null,null,null,null,null,"X","X","X",null,null,null,null,null,null,null,null,null,null,null,null,null,"Couleur","MMS001/G","Blanc","B","Blanc"]
[null,null,"Edulcoration",null,null,null,null,null,null,null,null,"X","X",null,null,null,null,null,null,null,null,null,null,null,null,null,"Rouge","R","Rouge"]
[null,null,"Centilisation",null,null,null,null,null,null,null,null,null,null,"X","X","X",null,null,null,null,null,null,null,null,null,null,"Rosé","S","Rosé"]
[null,null,"Type Bouteille",null,null,null,null,null,null,null,null,null,null,null,null,null,"X",null,null,null,null,null,null,null,null,null,"Gris","G","Gris"]
[null,null,"Modele BT",null,null,null,null,null,null,null,null,null,null,null,null,null,null,"X","X","X",null,null,null,null,null,null,"Tuilé","T","Tuilé"]
[null,null,"Capacité CT",null,null,null,null,null,null,null,null,null,null,null,null,null,null,null,null,null,"X","X","X",null,"Appelation","MMS001/F","Bordeaux","BDX","Bordeaux"]
[null,null,null,null,null,null,null,null,null,null,null,null,null,null,null,null,null,null,null,null,null,null,null,null,null,null,"Bordeaux Sup","XSU","Bordeaux Sup"]
[null,null,"CO TRI PF BIB VIM",null,null,null,null,null,null,null,null,null,null,null,null,null,null,null,null,null,null,null,null,null,null,null,"Coteaux d'Aix en Provence","CAP","Coteaux d'Aix en Provence"]
[null,null,null,1,2,3,4,5,6,7,8,9,10,11,12,13,null,null,null,null,null,null,null,null,null,null,"Costieres de nimes","CDN","Costieres de nimes"]
[null,null,"Format BIB","X",null,null,null,null,null,null,null,null,null,null,null,null,null,"Champ a revoir avec RHT",null,null,null,null,null,null,null,null,"Cotes de Provence","CDP","Cotes de Provence"]
[null,null,"Centilisation",null,"X","X","X",null,null,null,null,null,null,null,null,null,null,null,null,null,null,null,null,null,null,null,"Cotes du Roussillon","CDR","Cotes du Roussillon"]
[null,null,"Couleur",null,null,null,null,"X",null,null,null,null,null,null,null,null,null,null,null,null,null,null,null,null,null,null,"Cotes du Roussillon Village","CRV","Cotes du Roussillon Village"]
[null,null,"Appelation",null,null,null,null,null,"X","X","X",null,null,null,null,null,null,null,null,null,null,null,null,null,null,null,"Cotes du Ventoux","CDV","Cotes du Ventoux"]
[null,null,"Cepage",null,null,null,null,null,null,null,null,"X","X","X",null,null,null,null,null,null,null,null,null,null,null,null,"Corbieres","COR ","Corbieres"]
[null,null,"Edulcoration",null,null,null,null,null,null,null,null,null,null,null,"X","X",null,null,null,null,null,null,null,null,null,null,"Corbieres Boutenac","COB","Corbieres Boutenac"]
[null,null,null,null,null,null,null,null,null,null,null,null,null,null,null,null,null,null,null,null,null,null,null,null,null,null,"Cotes du Rhone","CDR","Cotes du Rhone"]
[null,null,null,null,null,null,null,null,null,null,null,null,null,null,null,null,null,null,null,null,null,null,null,null,null,null,"Cotes du Rhone Village","RVI","Cotes du Rhone Village"]
[null,null,"CO TRI PF VERRE UCCOAR",null,null,null,null,null,null,null,null,null,null,null,null,null,null,null,null,null,null,null,null,null,null,null,"Vin d'Espagne","ESP","Vin d'Espagne"]
[null,null,null,null,null,null,null,null,null,null,null,null,null,null,null,null,null,null,null,null,null,null,null,null,null,null,"Faugeres","FAU","Faugeres"]
[null,null,null,null,null,null,null,null,null,null,null,null,null,null,null,null,null,null,null,null,null,null,null,null,null,null,"Fitou","FIT","Fitou"]
[null,null,null,null,null,null,null,null,null,null,null,null,null,null,null,null,null,null,null,null,null,null,null,null,null,null,"Fronton","FRO","Fronton"]
[null,null,null,null,null,null,null,null,null,null,null,null,null,null,null,null,null,null,null,null,null,null,null,null,null,null,"IGP Aude","I11","IGP Aude"]
[null,null,null,null,null,null,null,null,null,null,null,null,null,null,null,null,null,null,null,null,null,null,null,null,null,null,"IGP Gard","I30","IGP Gard"]
[null,null,null,null,null,null,null,null,null,null,null,null,null,null,null,null,null,null,null,null,null,null,null,null,null,null,"IGP Herault","I34","IGP Herault"]
[null,null,null,null,null,null,null,null,null,null,null,null,null,null,null,null,null,null,null,null,null,null,null,null,null,null,"IGP Libron","ILI","IGP Libron"]
[null,null,null,null,null,null,null,null,null,null,null,null,null,null,null,null,null,null,null,null,null,null,null,null,null,null,"IGP Oc","IOC","IGP Oc"]
[null,null,null,null,null,null,null,null,null,null,null,null,null,null,null,null,null,null,null,null,null,null,null,null,null,null,"Languedoc Cabrieres","LCA","Languedoc Cabrieres"]
[null,null,null,null,null,null,null,null,null,null,null,null,null,null,null,null,null,null,null,null,null,null,null,null,null,null,"Languedoc La Clape","LCL","Languedoc La Clape"]
[null,null,null,null,null,null,null,null,null,null,null,null,null,null,null,null,null,null,null,null,null,null,null,null,null,null,"Languedoc Montpeyroux","LMO","Languedoc Montpeyroux"]
[null,null,"CO TRI PF CUBIS UCCOAR",null,null,null,null,null,null,null,null,null,null,null,null,null,null,null,null,null,null,null,null,null,null,null,"Languedoc Picpoul de Pinet","LPI","Languedoc Picpoul de Pinet"]
[null,null,null,null,null,null,null,null,null,null,null,null,null,null,null,null,null,null,null,null,null,null,null,null,null,null,"Languedoc Pic Saint Loup","LLO","Languedoc Pic Saint Loup"]
[null,null,null,null,null,null,null,null,null,null,null,null,null,null,null,null,null,null,null,null,null,null,null,null,null,null,"Languedoc Quatourze","LQA","Languedoc Quatourze"]
[null,null,null,null,null,null,null,null,null,null,null,null,null,null,null,null,null,null,null,null,null,null,null,null,null,null,"Minervois La Livinière","MIL","Minervois La Livinière"]
[null,null,null,null,null,null,null,null,null,null,null,null,null,null,null,null,null,null,null,null,null,null,null,null,null,null,"Minervois  ","MIN","Minervois  "]
[null,null,null,null,null,null,null,null,null,null,null,null,null,null,null,null,null,null,null,null,null,null,null,null,null,null,"Muscat de Mireval","MMI","Muscat de Mireval"]
[null,null,null,null,null,null,null,null,null,null,null,null,null,null,null,null,null,null,null,null,null,null,null,null,null,null,"Muscat de Rivesaltes","MRI","Muscat de Rivesaltes"]
[null,null,null,null,null,null,null,null,null,null,null,null,null,null,null,null,null,null,null,null,null,null,null,null,null,null,"Muscat de Saint Jean de Minervois","MSJ","Muscat de Saint Jean de Minervois"]
[null,null,null,null,null,null,null,null,null,null,null,null,null,null,null,null,null,null,null,null,null,null,null,null,null,null,"VCE","VCE","VCE"]
[null,null,null,null,null,null,null,null,null,null,null,null,null,null,null,null,null,null,null,null,null,null,null,null,null,null,"VDF","VDF","VDF"]
[null,null,null,null,null,null,null,null,null,null,null,null,null,null,null,null,null,null,null,null,null,null,null,null,"Cepage","MMS001/G","Alicante","ALI","Alicante"]
[null,null,null,null,null,null,null,null,null,null,null,null,null,null,null,null,null,null,null,null,null,null,null,null,null,null,"Cabernet Franc","CFR","Cabernet Franc"]
[null,null,null,null,null,null,null,null,null,null,null,null,null,null,null,null,null,null,null,null,null,null,null,null,null,null,"Cabernet Sauvignon","CSA","Cabernet Sauvignon"]
[null,null,"CO TRI PF BIB UCCOAR",null,null,null,null,null,null,null,null,null,null,null,null,null,null,null,null,null,null,null,null,null,null,null,"Carignan","CAR","Carignan"]
[null,null,null,null,null,null,null,null,null,null,null,null,null,null,null,null,null,null,null,null,null,null,null,null,null,null,"Chardonnay","CHA","Chardonnay"]
[null,null,null,null,null,null,null,null,null,null,null,null,null,null,null,null,null,null,null,null,null,null,null,null,null,null,"Chasan","CSA","Chasan"]
[null,null,null,null,null,null,null,null,null,null,null,null,null,null,null,null,null,null,null,null,null,null,null,null,null,null,"Chenin","CHE","Chenin"]
[null,null,null,null,null,null,null,null,null,null,null,null,null,null,null,null,null,null,null,null,null,null,null,null,null,null,"Cinsault","CIN","Cinsault"]
[null,null,null,null,null,null,null,null,null,null,null,null,null,null,null,null,null,null,null,null,null,null,null,null,null,null,"Cinsault Grenache","CIG","Cinsault Grenache"]
[null,null,null,null,null,null,null,null,null,null,null,null,null,null,null,null,null,null,null,null,null,null,null,null,null,null,"Colombard","COL","Colombard"]
[null,null,null,null,null,null,null,null,null,null,null,null,null,null,null,null,null,null,null,null,null,null,null,null,null,null,"Grenache Cinsault","GRC","Grenache Cinsault"]
[null,null,null,null,null,null,null,null,null,null,null,null,null,null,null,null,null,null,null,null,null,null,null,null,null,null,"Grenache","GRE","Grenache"]
[null,null,null,null,null,null,null,null,null,null,null,null,null,null,null,null,null,null,null,null,null,null,null,null,null,null,"Grenache Syrah","GRS","Grenache Syrah"]
[null,null,null,null,null,null,null,null,null,null,null,null,null,null,null,null,null,null,null,null,null,null,null,null,null,null,"Malbec","MAL","Malbec"]
[null,null,null,null,null,null,null,null,null,null,null,null,null,null,null,null,null,null,null,null,null,null,null,null,null,null,"Marselan","MAR","Marselan"]
[null,null,null,null,null,null,null,null,null,null,null,null,null,null,null,null,null,null,null,null,null,null,null,null,null,null,"Merlot","MER","Merlot"]
[null,null,null,null,null,null,null,null,null,null,null,null,null,null,null,null,null,null,null,null,null,null,null,null,null,null,"Muscat","MUS","Muscat"]
[null,null,null,null,null,null,null,null,null,null,null,null,null,null,null,null,null,null,null,null,null,null,null,null,null,null,"Muscat Petit Grain","MPG","Muscat Petit Grain"]
[null,null,null,null,null,null,null,null,null,null,null,null,null,null,null,null,null,null,null,null,null,null,null,null,null,null,"Pinot","PIN","Pinot"]
[null,null,null,null,null,null,null,null,null,null,null,null,null,null,null,null,null,null,null,null,null,null,null,null,null,null,"Sauvignon","SAU","Sauvignon"]
[null,null,null,null,null,null,null,null,null,null,null,null,null,null,null,null,null,null,null,null,null,null,null,null,null,null,"Syrah","SYR","Syrah"]
[null,null,null,null,null,null,null,null,null,null,null,null,null,null,null,null,null,null,null,null,null,null,null,null,null,null,"Viognier","VIO","Viognier"]
[null,null,null,null,null,null,null,null,null,null,null,null,null,null,null,null,null,null,null,null,null,null,null,null,"Edulcoration","Zone perso","00","00","00"]
[null,null,null,null,null,null,null,null,null,null,null,null,null,null,null,null,null,null,null,null,null,null,null,null,null,null,"02","02","02"]
[null,null,null,null,null,null,null,null,null,null,null,null,null,null,null,null,null,null,null,null,null,null,null,null,null,null,"05","05","05"]
[null,null,null,null,null,null,null,null,null,null,null,null,null,null,null,null,null,null,null,null,null,null,null,null,null,null,"08","08","08"]
[null,null,null,null,null,null,null,null,null,null,null,null,null,null,null,null,null,null,null,null,null,null,null,null,null,null,"10","10","10"]
[null,null,null,null,null,null,null,null,null,null,null,null,null,null,null,null,null,null,null,null,null,null,null,null,null,null,"15","15","15"]
[null,null,null,null,null,null,null,null,null,null,null,null,null,null,null,null,null,null,null,null,null,null,null,null,null,null,"20","20","20"]
[null,null,null,null,null,null,null,null,null,null,null,null,null,null,null,null,null,null,null,null,null,null,null,null,null,null,"25","25","25"]
[null,null,null,null,null,null,null,null,null,null,null,null,null,null,null,null,null,null,null,null,null,null,null,null,null,null,"30","30","30"]
[null,null,"CO TRI TETRA TRILLES",null,null,null,null,null,null,null,null,null,null,null,null,null,null,null,null,null,null,null,null,null,"Centilisation","MMS001/E","25","025","25"]
[null,null,null,1,2,3,4,5,6,null,null,null,null,null,null,null,null,null,null,null,null,null,null,null,null,null,"37,5","375","37,5"]
[null,null,"Centilisation","X","X","X",null,null,null,null,null,null,null,null,null,null,null,null,null,null,null,null,null,null,null,null,"50","050","50"]
[null,null,"Couleur",null,null,null,"X",null,null,null,null,null,null,null,null,null,null,null,null,null,null,null,null,null,null,null,"75","075","75"]
[null,null,"Edulcoration",null,null,null,null,"X","X",null,null,null,null,null,null,null,null,null,null,null,null,null,null,null,null,null,"100","100","100"]
[null,null,null,null,null,null,null,null,null,null,null,null,null,null,null,null,null,null,null,null,null,null,null,null,null,null,"150","150","150"]
[null,null,"CO TRI PF TRILLES",null,null,null,null,null,null,null,null,null,null,null,null,null,null,null,null,null,null,null,null,null,null,null,"225",225,"225"]
[null,null,null,1,2,3,4,5,6,7,8,9,10,11,12,13,14,15,16,17,18,19,20,null,null,null,"300",300,"300"]
[null,null,"Bio","X",null,null,null,null,null,null,null,null,null,null,null,null,null,null,null,null,null,null,null,null,null,null,"500",500,"500"]
[null,null,"Type Bouteille",null,"X",null,null,null,null,null,null,null,null,null,null,null,null,null,null,null,null,null,null,null,null,null,"1000","10A","1000"]
[null,null,"Couleur",null,null,"X",null,null,null,null,null,null,null,null,null,null,null,null,null,null,null,null,null,null,null,null,"2000","20A","2000"]
[null,null,"Appelation",null,null,null,"X","X","X",null,null,null,null,null,null,null,null,null,null,null,null,null,null,null,"Type de bouteille","Zone perso","Bordelaise","X","Bordelaise"]
[null,null,"Cepage",null,null,null,null,null,null,"X","X","X",null,null,null,null,null,null,null,null,null,null,null,null,null,null,"Bourguignone","G","Bourguignone"]
[null,null,"Edulcoration",null,null,null,null,null,null,null,null,null,"X","X",null,null,null,null,null,null,null,null,null,null,null,null,"Regionale","R","Regionale"]
[null,null,"Centilisation",null,null,null,null,null,null,null,null,null,null,null,"X","X","X",null,null,null,null,null,null,null,null,null,"Speciale","S","Speciale"]
[null,null,"Modele BT",null,null,null,null,null,null,null,null,null,null,null,null,null,null,"X","X","X",null,null,null,null,"Modele BT","Zone perso","AUTHENTIQ","AUT","AUTHENTIQ"]
[null,null,"Capacité CT",null,null,null,null,null,null,null,null,null,null,null,null,null,null,null,null,null,"X","X","X",null,null,null,"AZUR","AZU","AZUR"]
[null,null,null,null,null,null,null,null,null,null,null,null,null,null,null,null,null,null,null,null,null,null,null,null,null,null,"BG","BG","BG"]
[null,null,null,null,null,null,null,null,null,null,null,null,null,null,null,null,null,null,null,null,null,null,null,null,null,null,"BOULIDOU","BOU","BOULIDOU"]
[null,null,null,null,null,null,null,null,null,null,null,null,null,null,null,null,null,null,null,null,null,null,null,null,null,null,"CALIFORN","CAL","CALIFORN"]
[null,null,null,null,null,null,null,null,null,null,null,null,null,null,null,null,null,null,null,null,null,null,null,null,null,null,"CARACTERE","CAR","CARACTERE"]
[null,null,null,null,null,null,null,null,null,null,null,null,null,null,null,null,null,null,null,null,null,null,null,null,null,null,"CARAFE","CAF","CARAFE"]
[null,null,null,null,null,null,null,null,null,null,null,null,null,null,null,null,null,null,null,null,null,null,null,null,null,null,"CLARA","CLA","CLARA"]
[null,null,null,null,null,null,null,null,null,null,null,null,null,null,null,null,null,null,null,null,null,null,null,null,null,null,"DISTINCTI","DIS","DISTINCTI"]
[null,null,null,null,null,null,null,null,null,null,null,null,null,null,null,null,null,null,null,null,null,null,null,null,null,null,"ECO 2","ECO","ECO 2"]
[null,null,null,null,null,null,null,null,null,null,null,null,null,null,null,null,null,null,null,null,null,null,null,null,null,null,"EVOL SATI","EVS","EVOL SATI"]
[null,null,null,null,null,null,null,null,null,null,null,null,null,null,null,null,null,null,null,null,null,null,null,null,null,null,"EVOLUTION","EVO","EVOLUTION"]
[null,null,null,null,null,null,null,null,null,null,null,null,null,null,null,null,null,null,null,null,null,null,null,null,null,null,"FLUTE EVO","FLU","FLUTE EVO"]
[null,null,null,null,null,null,null,null,null,null,null,null,null,null,null,null,null,null,null,null,null,null,null,null,null,null,"FLUTE OPTIMA","FLU","FLUTE OPTIMA"]
[null,null,null,null,null,null,null,null,null,null,null,null,null,null,null,null,null,null,null,null,null,null,null,null,null,null,"GDE TRAD","GDE","GDE TRAD"]
[null,null,null,null,null,null,null,null,null,null,null,null,null,null,null,null,null,null,null,null,null,null,null,null,null,null,"HELIX","HEL","HELIX"]
[null,null,null,null,null,null,null,null,null,null,null,null,null,null,null,null,null,null,null,null,null,null,null,null,null,null,"LANGUEDOC","LAN","LANGUEDOC"]
[null,null,null,null,null,null,null,null,null,null,null,null,null,null,null,null,null,null,null,null,null,null,null,null,null,null,"LITRE","LIT","LITRE"]
[null,null,null,null,null,null,null,null,null,null,null,null,null,null,null,null,null,null,null,null,null,null,null,null,null,null,"LITRE HOLL","LHO","LITRE HOLL"]
[null,null,null,null,null,null,null,null,null,null,null,null,null,null,null,null,null,null,null,null,null,null,null,null,null,null,"LITRE VT","LVT","LITRE VT"]
[null,null,null,null,null,null,null,null,null,null,null,null,null,null,null,null,null,null,null,null,null,null,null,null,null,null,"LUX NATURA","LUX","LUX NATURA"]
[null,null,null,null,null,null,null,null,null,null,null,null,null,null,null,null,null,null,null,null,null,null,null,null,null,null,"MAESTRIA","MAE","MAESTRIA"]
[null,null,null,null,null,null,null,null,null,null,null,null,null,null,null,null,null,null,null,null,null,null,null,null,null,null,"MAGNUM","MAG","MAGNUM"]
[null,null,null,null,null,null,null,null,null,null,null,null,null,null,null,null,null,null,null,null,null,null,null,null,null,null,"MEDIUM","MED","MEDIUM"]
[null,null,null,null,null,null,null,null,null,null,null,null,null,null,null,null,null,null,null,null,null,null,null,null,null,null,"NATURA","NAT","NATURA"]
[null,null,null,null,null,null,null,null,null,null,null,null,null,null,null,null,null,null,null,null,null,null,null,null,null,null,"NIMOISE","NIM","NIMOISE"]
[null,null,null,null,null,null,null,null,null,null,null,null,null,null,null,null,null,null,null,null,null,null,null,null,null,null,"OPTIMA","OPT","OPTIMA"]
[null,null,null,null,null,null,null,null,null,null,null,null,null,null,null,null,null,null,null,null,null,null,null,null,null,null,"PRIVILEGE","PRI","PRIVILEGE"]
[null,null,null,null,null,null,null,null,null,null,null,null,null,null,null,null,null,null,null,null,null,null,null,null,null,null,"PROVENCE","PRO","PROVENCE"]
[null,null,null,null,null,null,null,null,null,null,null,null,null,null,null,null,null,null,null,null,null,null,null,null,null,null,"SABINE","SAB","SABINE"]
[null,null,null,null,null,null,null,null,null,null,null,null,null,null,null,null,null,null,null,null,null,null,null,null,null,null,"SARMENAC","SAR","SARMENAC"]
[null,null,null,null,null,null,null,null,null,null,null,null,null,null,null,null,null,null,null,null,null,null,null,null,null,null,"SEDDUCCION","SED","SEDDUCCION"]
[null,null,null,null,null,null,null,null,null,null,null,null,null,null,null,null,null,null,null,null,null,null,null,null,null,null,"SEDUCTION","SED","SEDUCTION"]
[null,null,null,null,null,null,null,null,null,null,null,null,null,null,null,null,null,null,null,null,null,null,null,null,null,null,"SENSATION","SEN","SENSATION"]
[null,null,null,null,null,null,null,null,null,null,null,null,null,null,null,null,null,null,null,null,null,null,null,null,null,null,"SPIRALE","SPI","SPIRALE"]
[null,null,null,null,null,null,null,null,null,null,null,null,null,null,null,null,null,null,null,null,null,null,null,null,null,null,"TENDANCE","TEN","TENDANCE"]
[null,null,null,null,null,null,null,null,null,null,null,null,null,null,null,null,null,null,null,null,null,null,null,null,null,null,"TRADITION","TRA","TRADITION"]
[null,null,null,null,null,null,null,null,null,null,null,null,null,null,null,null,null,null,null,null,null,null,null,null,null,null,"TUCCITANE","TUC","TUCCITANE"]
[null,null,null,null,null,null,null,null,null,null,null,null,null,null,null,null,null,null,null,null,null,null,null,null,null,null,"UCCOAR","UCC","UCCOAR"]
[null,null,null,null,null,null,null,null,null,null,null,null,null,null,null,null,null,null,null,null,null,null,null,null,null,null,"VERONIQUE","VER","VERONIQUE"]
[null,null,null,null,null,null,null,null,null,null,null,null,null,null,null,null,null,null,null,null,null,null,null,null,"Capacité CT","Zone perso","001","001","001"]
[null,null,null,null,null,null,null,null,null,null,null,null,null,null,null,null,null,null,null,null,null,null,null,null,null,null,"003","003","003"]
[null,null,null,null,null,null,null,null,null,null,null,null,null,null,null,null,null,null,null,null,null,null,null,null,null,null,"004","004","004"]
[null,null,null,null,null,null,null,null,null,null,null,null,null,null,null,null,null,null,null,null,null,null,null,null,null,null,"006","006","006"]
[null,null,null,null,null,null,null,null,null,null,null,null,null,null,null,null,null,null,null,null,null,null,null,null,null,null,"010","010","010"]
[null,null,null,null,null,null,null,null,null,null,null,null,null,null,null,null,null,null,null,null,null,null,null,null,null,null,"012","012","012"]
[null,null,null,null,null,null,null,null,null,null,null,null,null,null,null,null,null,null,null,null,null,null,null,null,null,null,"024","024","024"]
[null,null,null,null,null,null,null,null,null,null,null,null,null,null,null,null,null,null,null,null,null,null,null,null,null,null,"048","048","048"]
[null,null,null,null,null,null,null,null,null,null,null,null,null,null,null,null,null,null,null,null,null,null,null,null,null,null,"054","054","054"]
[null,null,null,null,null,null,null,null,null,null,null,null,null,null,null,null,null,null,null,null,null,null,null,null,null,null,"065","065","065"]
[null,null,null,null,null,null,null,null,null,null,null,null,null,null,null,null,null,null,null,null,null,null,null,null,null,null,"080","080","080"]
[null,null,null,null,null,null,null,null,null,null,null,null,null,null,null,null,null,null,null,null,null,null,null,null,null,null,"108","108","108"]

{"sheet":"Nomenclature_design_art","index":1,"n_rows":83,"n_cols":15,"rows_kept":83,"cut":false,"hidden":false,"merged":[]}
[null,null,"PF &VRAC"]
[]
[null,null,"Categorie app","Espace","App/Cepage","Espace","Coul","Espace","Degre","\"+\"","Edulcoration","Espace","Nom/Cuvee"]
[null,"Nb car",3,1,3,1,2,1,4,1,2,1,11,null,{"$f":"SUM(C4:M4)","v":30}]
[]
[null,null,"Client et specificité dans Code etendu ou Designation"]
[]
[]
[]
[null,null,"Couleur","Blanc","BL",null,"Degré",""]
[null,null,null,"Rouge","RG",null,null,6.5]
[null,null,null,"Rosé","RS",null,null,7]
[null,null,null,"Gris","GR",null,null,7.5]
[null,null,null,"Tuilé","TU",null,null,8]
[null,null,"Cat App","IGP","IGP",null,null,8.5]
[null,null,null,"AOP","AOP",null,null,9]
[null,null,null,"AOP VDN","VDN",null,null,9.5]
[null,null,null,"SANS",null,null,null,10]
[null,null,"Appelation","Bordeaux","BDX",null,null,10.5]
[null,null,null,"Bordeaux Sup","XSU",null,null,11]
[null,null,null,"Coteaux d'Aix en Provence","CAP",null,null,11.5]
[null,null,null,"Costieres de nimes","CDN",null,null,12]
[null,null,null,"Cotes de Provence","CDP",null,null,12.5]
[null,null,null,"Cotes du Roussillon","CDR",null,null,13]
[null,null,null,"Cotes du Roussillon Village","CRV",null,null,13.5]
[null,null,null,"Cotes du Ventoux","CDV",null,null,14]
[null,null,null,"Corbieres","COR ",null,null,14.5]
[null,null,null,"Corbieres Boutenac","COB",null,null,15]
[null,null,null,"Cotes du Rhone","CRH",null,null,15.5]
[null,null,null,"Cotes du Rhone Village","RVI"]
[null,null,null,"Vin d'Espagne","ESP"]
[null,null,null,"Faugeres","FAU"]
[null,null,null,"Fitou","FIT"]
[null,null,null,"Fronton","FRO"]
[null,null,null,"IGP Aude","I11"]
[null,null,null,"IGP Gard","I30"]
[null,null,null,"IGP Herault","I34"]
[null,null,null,"IGP Libron","ILI"]
[null,null,null,"IGP Oc","IOC"]
[null,null,null,"Languedoc Cabrieres","LCA"]
[null,null,null,"Languedoc La Clape","LCL"]
[null,null,null,"Languedoc Montpeyroux","LMO"]
[null,null,null,"Languedoc Picpoul de Pinet","LPI"]
[null,null,null,"Languedoc Pic Saint Loup","LLO"]
[null,null,null,"Languedoc Quatourze","LQA"]
[null,null,null,"Minervois La Livinière","MIL"]
[null,null,null,"Minervois  ","MIN"]
[null,null,null,"Muscat de Mireval","MMI"]
[null,null,null,"Muscat de Rivesaltes","MRI"]
[null,null,null,"Muscat de Saint Jean de Minervois","MSJ"]
[null,null,null,"VCE","VCE"]
[null,null,null,"VDF","VDF"]
[null,null,"Cepage","Alicante","ALI"]
[null,null,null,"Cabernet Franc","CFR"]
[null,null,null,"Cabernet Sauvignon","CSA"]
[null,null,null,"Carignan","CAR"]
[null,null,null,"Chardonnay","CHA"]
[null,null,null,"Chasan","CSA"]
[null,null,null,"Chenin","CHE"]
[null,null,null,"Cinsault","CIN"]
[null,null,null,"Cinsault Grenache","CIG"]
[null,null,null,"Colombard","COL"]
[null,null,null,"Grenache Cinsault","GRC"]
[null,null,null,"Grenache","GRE"]
[null,null,null,"Grenache Syrah","GRS"]
[null,null,null,"Malbec","MAL"]
[null,null,null,"Marselan","MAR"]
[null,null,null,"Merlot","MER"]
[null,null,null,"Muscat","MUS"]
[null,null,null,"Muscat Petit Grain","MPG"]
[null,null,null,"Pinot","PIN"]
[null,null,null,"Sauvignon","SAU"]
[null,null,null,"Syrah","SYR"]
[null,null,null,"Viognier","VIO"]
[null,null,"Edulcoration","00","00"]
[null,null,null,"02","02"]
[null,null,null,"05","05"]
[null,null,null,"08","08"]
[null,null,null,"10","10"]
[null,null,null,"15","15"]
[null,null,null,"20","20"]
[null,null,null,"25","25"]
[null,null,null,"30","30"]

{"sheet":"Nomenclature_design_art_MS","index":2,"n_rows":140,"n_cols":46,"rows_kept":140,"cut":false,"hidden":false,"merged":[]}
[null,null,"MS",null,null,null,null,null,null,null,null,null,null,null,null,null,null,null,null,null,null,null,null,null,null,null,null,null,null,"X"]
[null,null,null,null,null,null,null,null,null,null,null,null,null,null,null,null,null,null,null,null,null,null,null,null,null,null,null,null,null,"H",null,null,"Capsule"]
["CONTENANT",null,"Famille","Type","Modele","Espace","Couleur","Centilisation","Espace","Bouchage","Espace","Libre",null,null,null,null,null,null,null,null,null,null,null,"CONTENANT",null,null,null,"FERMETURE",null,null,null,"SURBOUCHAGE","Pion Fiscal",null,null,"EMBALLAGE",null,null,null,"HABILLAGE",null,null,null,"AGRES"]
[null,"Nb car",2,1,3,1,2,4,1,3,1,12,null,null,null,null,{"$f":"SUM(C4:L4)","v":30}]
[null,null,null,null,null,null,null,null,null,null,null,null,null,null,null,null,null,null,"AGRES","Couleur","Blanc","BL",null,"Famille","Bouteille Verre","BV",null,"Famille","Bouchon","BO",null,"Nature","COMPLEXE","CPX",null,"Nature","CARTON BOUTEILLE","CAR",null,"Famille","Etiquette","ETI",null,"Famille","Palette","PAL"]
[null,null,"Champ libre 11 car pour crantage, blason, cote ou centre pour robinet, …..",null,null,null,null,null,null,null,null,null,null,null,null,null,null,null,"CONTENANT",null,"Rouge","RG",null,null,"Bouteilles PET","BP",null,null,"Capsule a vis","CV",null,null,"PVC","PVC",null,null,"APLAT BIB","BIB",null,null,"Contre Etiquette","CET",null,null,"Emballages","EMB"]
[null,null,null,null,null,null,null,null,null,null,null,null,null,null,null,null,null,null,"EMBALLAGE",null,"Rosé","RS",null,null,"Cubis","CU",null,null,"Opercule","OP",null,null,"PET","PET",null,null,"CAISSE BOIS","CAI",null,null,"Collerette","COL",null,null,"Intercalaires","INT"]
[null,null,null,null,null,null,null,null,null,null,null,null,null,null,null,null,null,null,"FERMETURE",null,"Gris","GR",null,null,"Outre","OU",null,null,"Cap Stream","CS",null,null,"ALU","ALU",null,null,"BOX","BOX",null,null,"Medaille","MED",null,"Nature","EUR","EUR"]
["FERMETURE",null,"Famille","Espace","Nature","Espace","Diametre","\"X\" ou \"H\"","Longueur","Espace","Qualite/Couleur","Espace","CRD/Centil","Espace","Decor",null,null,null,"HABILLAGE",null,"Tuilé","TU",null,null,"Pouch 6","P6",null,"Nature","LIEGE NATUREL","LN",null,null,"ETAIN","ETA",null,null,"REGROUPEMENT","REG",null,null,"Sticker","STK",null,null,"CHEP","CHP"]
[null,"Nb car",2,1,2,1,4,1,4,1,3,1,5,1,4,null,{"$f":"SUM(C10:O10)","v":30},null,"SURBOUCHAGE","Cat App","IGP","IGP",null,null,"Pouch 4","P4",null,null,"LIEGE COLMATE","LC",null,"CRD/Centil","NF","NF",null,null,"BAC PRESENTOIR","BAC",null,null,"Affichette","AFF",null,null,"VMF","VMF"]
[null,null,null,null,null,null,null,null,null,null,null,null,null,null,null,null,null,null,null,null,"AOP","AOP",null,null,"Tetra Baseline","TB",null,null,"AGGLO","AG",null,null,"NF25","NF25",null,null,"CROISILLON","CRO",null,null,"Paille","PAI",null,null,"AUTRES","DIV"]
["SURBOUCHAGE",null,"Nature","Espace","CRD/Centil","Espace","Diametre","\"X\"","Hauteur","Espace","Couleur","Espace","Decor",null,null,null,null,null,null,null,"AOP VDN","VDN",null,null,"Tetra Prisma","TP",null,null,"TECHNIQUE","TE",null,null,"NF37,5","NF37",null,null,"ALVEOLE","ALV",null,null,"Pendeloque","PEN",null,null,"FILM","FIL"]
[null,"Nb car",3,1,6,1,4,1,4,1,3,1,3,null,null,null,{"$f":"SUM(C13:O13)","v":28},null,null,null,"SANS",null,null,"Type","Bordelaise","X",null,null,"SYNTHETIQUE","SY",null,null,"NF50","NF50",null,null,"PLAQUE","PLA",null,"Nature","Traditionnel","T",null,null,"HOUSSE","HOU"]
[null,null,null,null,null,null,null,null,null,null,null,null,null,null,null,null,null,null,null,"Appelation","Bordeaux","BDX",null,null,"Bourguignone","G",null,null,"ALU","AL",null,null,"NF300","NF300",null,null,"GUILLOTINE","GUI",null,null,"Adhesif","A",null,null,"ANTI GLISSE","PAG"]
[null,null,null,null,null,null,null,null,null,null,null,null,null,null,null,null,null,null,null,null,"Bordeaux Sup","XSU",null,null,"Regionale","R",null,null,"PEHD","PH",null,null,"TB25","TB25",null,null,"FILM","FLM",null,null,"Pyramide","P ",null,null,"AQUILUX","AQU"]
["EMBALLAGE",null,"Nature","Espace","Type","Capacité","Espace","Contenant","Espace","Modele","Espace","Centilisation","Espace","Decor","Espace","Finition",null,null,null,null,"Coteaux d'Aix en Provence","CAP",null,null,"Speciale","S",null,null,"PVC","PV",null,null,"TB37,5","TB37",null,"Type","Debout","D",null,null,"Leaflet","L"]
[null,"Nb car",3,1,1,3,1,3,1,3,1,4,1,3,1,3,{"$f":"SUM(C17:P17)","v":29},null,null,null,"Costieres de nimes","CDN",null,"Modele","AUTHENTIQ","AUT",null,null,"PE","PE",null,null,"TB50","TB50",null,null,"Couché","C",null,null,null,null,null,"Longueur",""]
[null,null,null,null,null,null,null,null,null,null,null,null,null,null,null,null,null,null,null,null,"Cotes de Provence","CDP",null,null,"AZUR","AZU",null,"Qualite/Couleur","Fleur","FLE",null,null,"TB75","TB75",null,"Capacité","1","1",null,null,null,null,null,null,"400"]
["HABILLAGE",null,"Famille","Espace","Nature","Espace","Hauteur","\"X\"","Largeur","Espace","Degré","Espace","Mill","Espace","Libre",null,null,null,null,null,"Cotes du Roussillon","CDR",null,null,"BG","BG",null,null,"Superieure","SUP",null,null,"TB100","TB100",null,null,"2","2",null,null,null,null,null,null,"600"]
[null,"Nb car",3,1,1,1,3,1,3,1,4,1,2,1,8,null,{"$f":"SUM(C20:O20)","v":30},null,null,null,"Cotes du Roussillon Village","CRV",null,null,"BOULIDOU","BOU",null,null,"1ere","1",null,null,"TB150","TB150",null,null,"3","3",null,null,null,null,null,null,"800"]
[null,null,null,null,null,null,null,null,null,null,null,null,null,null,null,null,null,null,null,null,"Cotes du Ventoux","CDV",null,null,"CALIFORN","CAL",null,null,"2eme","2",null,null,"TB225","TB225",null,null,"4","4",null,null,null,null,null,null,"1000"]
["AGRES",null,"Famille","Espace","Nature","Espace","Longueur","\"X\"","Largeur","Espace","Libre",null,null,null,null,null,null,null,null,null,"Corbieres","COR ",null,null,"CARACTERE","CAR",null,null,"3eme","3",null,null,"TB300","TB300",null,null,"6","6",null,null,null,null,null,null,"1200"]
[null,"Nb car",3,1,3,1,4,1,4,1,12,null,null,null,null,null,{"$f":"SUM(C23:O23)","v":30},null,null,null,"Corbieres Boutenac","COB",null,null,"CARAFE","CAF",null,null,"4eme","4",null,null,"TB500","TB500",null,null,"10","10"]
[null,null,null,null,null,null,null,null,null,null,null,null,null,null,null,null,null,null,null,null,"Cotes du Rhone","CRH",null,null,"CLARA","CLA",null,null,"5eme","5",null,null,"TV25","TV25",null,null,"12","12",null,null,null,null,null,"Largeur","400"]
[null,null,null,null,null,null,null,null,null,null,null,null,null,null,null,null,null,null,null,null,"Cotes du Rhone Village","RVI",null,null,"DISTINCTI","DIS",null,null,"6eme","6",null,null,"TV37,5","TV37",null,null,"24","24",null,null,null,null,null,null,"600"]
[null,null,null,null,null,null,null,null,null,null,null,null,null,null,null,null,null,null,null,null,"Vin d'Espagne","ESP",null,null,"ECO 2","ECO",null,null,"Rien",null,null,null,"TV50","TV50",null,null,"48","48",null,null,null,null,null,null,"800"]
[null,null,null,null,null,null,null,null,null,null,null,null,null,null,null,null,null,null,null,null,"Faugeres","FAU",null,null,"EVOL SATI","EVS",null,null,"Or","OR",null,null,"TV75","TV75",null,null,"54","54",null,null,null,null,null,null,"1000"]
[null,null,null,null,null,null,null,null,null,null,null,null,null,null,null,null,null,null,null,null,"Fitou","FIT",null,null,"EVOLUTION","EVO",null,null,"Argent","ARG",null,null,"TV100","TV100",null,null,"65","65",null,null,null,null,null,null,"1200"]
[null,null,null,null,null,null,null,null,null,null,null,null,null,null,null,null,null,null,null,null,"Fronton","FRO",null,null,"FLUTE EVO","FLU",null,null,"Bronze","BRO",null,null,"TV150","TV150",null,null,"80","80"]
[null,null,null,null,null,null,null,null,null,null,null,null,null,null,null,null,null,null,null,null,"IGP Aude","I11",null,null,"FLUTE OPTIMA","FLU",null,null,"Noire","NOI",null,null,"TV225","TV225",null,null,"108","108"]
[null,null,null,null,null,null,null,null,null,null,null,null,null,null,null,null,null,null,null,null,"IGP Gard","I30",null,null,"GDE TRAD","GDE",null,null,"Rouge","RGE",null,null,"TV300","TV300",null,"Contenant","BX","BX"]
[null,null,null,null,null,null,null,null,null,null,null,null,null,null,null,null,null,null,null,null,"IGP Herault","I34",null,null,"HELIX","HEL",null,null,"Bordeaux","BDX",null,null,"TV500","TV500",null,null,"BG","BG"]
[null,null,null,null,null,null,null,null,null,null,null,null,null,null,null,null,null,null,null,null,"IGP Libron","ILI",null,null,"LANGUEDOC","LAN",null,null,"Marron","MAR",null,null,"LDV25","LV25",null,null,"SPE","SPE"]
[null,null,null,null,null,null,null,null,null,null,null,null,null,null,null,null,null,null,null,null,"IGP Oc","IOC",null,null,"LITRE","LIT",null,null,"Bleu","BLE",null,null,"LDV37,5","LV37",null,null,"BIB","BIB"]
[null,null,null,null,null,null,null,null,null,null,null,null,null,null,null,null,null,null,null,null,"Languedoc Cabrieres","LCA",null,null,"LITRE HOLL","LHO",null,null,"Vert","VER",null,null,"LDV50","LV50",null,null,"TETRA","TET"]
[null,null,null,null,null,null,null,null,null,null,null,null,null,null,null,null,null,null,null,null,"Languedoc La Clape","LCL",null,null,"LITRE VT","LVT",null,null,"Jaune","JAU",null,null,"LDV75","LV75",null,"Modele","Rien"]
[null,null,null,null,null,null,null,null,null,null,null,null,null,null,null,null,null,null,null,null,"Languedoc Montpeyroux","LMO",null,null,"LUX NATURA","LUX",null,null,"Orange","ORA",null,null,"LDV100","LV100",null,null,"AUTHENTIQ","AUT"]
[null,null,null,null,null,null,null,null,null,null,null,null,null,null,null,null,null,null,null,null,"Languedoc Picpoul de Pinet","LPI",null,null,"MAESTRIA","MAE",null,null,"Violet","VIO",null,null,"LDV150","LV150",null,null,"AZUR","AZU"]
[null,null,null,null,null,null,null,null,null,null,null,null,null,null,null,null,null,null,null,null,"Languedoc Pic Saint Loup","LLO",null,null,"MAGNUM","MAG",null,null,"Blanc","BLC",null,null,"LDV225","LV225",null,null,"BG","BG"]
[null,null,null,null,null,null,null,null,null,null,null,null,null,null,null,null,null,null,null,null,"Languedoc Quatourze","LQA",null,null,"MEDIUM","MED",null,null,"Creme","CRM",null,null,"LDV300","LV300",null,null,"BOULIDOU","BOU"]
[null,null,null,null,null,null,null,null,null,null,null,null,null,null,null,null,null,null,null,null,"Minervois La Livinière","MIL",null,null,"NATURA","NAT",null,null,"Cristal","CST",null,null,"LDV500","LV500",null,null,"CALIFORN","CAL"]
[null,null,null,null,null,null,null,null,null,null,null,null,null,null,null,null,null,null,null,null,"Minervois  ","MIN",null,null,"NIMOISE","NIM",null,null,"Coquelicot","COQ",null,"Couleur","Or","OR",null,null,"CARACTERE","CAR"]
[null,null,null,null,null,null,null,null,null,null,null,null,null,null,null,null,null,null,null,null,"Muscat de Mireval","MMI",null,null,"NOVIMPAK","NOV",null,null,"Safran","SAF",null,null,"Argent","ARG",null,null,"CARAFE","CAF"]
[null,null,null,null,null,null,null,null,null,null,null,null,null,null,null,null,null,null,null,null,"Muscat de Rivesaltes","MRI",null,null,"OPTIMA","OPT",null,null,"Rose","RSE",null,null,"Bronze","BRO",null,null,"CLARA","CLA"]
[null,null,null,null,null,null,null,null,null,null,null,null,null,null,null,null,null,null,null,null,"Muscat de Saint Jean de Minervois","MSJ",null,null,"PRIVILEGE","PRI",null,"CRD/Centil","Sans",null,null,null,"Noire","NOI",null,null,"DISTINCTI","DIS"]
[null,null,null,null,null,null,null,null,null,null,null,null,null,null,null,null,null,null,null,null,"VCE","VCE",null,null,"PROVENCE","PRO",null,null,"NF","NF",null,null,"Rouge","RGE",null,null,"ECO 2","ECO"]
[null,null,null,null,null,null,null,null,null,null,null,null,null,null,null,null,null,null,null,null,"VDF","VDF",null,null,"SABINE","SAB",null,null,"NF25","NF25",null,null,"Bordeaux","BDX",null,null,"EVOL SATI","EVS"]
[null,null,null,null,null,null,null,null,null,null,null,null,null,null,null,null,null,null,null,"Cepage","Alicante","ALI",null,null,"SARMENAC","SAR",null,null,"NF37,5","NF37",null,null,"Marron","MAR",null,null,"EVOLUTION","EVO"]
[null,null,null,null,null,null,null,null,null,null,null,null,null,null,null,null,null,null,null,null,"Cabernet Franc","CFR",null,null,"SEDDUCCION","SED",null,null,"NF50","NF50",null,null,"Bleu","BLE",null,null,"FLUTE EVO","FLU"]
[null,null,null,null,null,null,null,null,null,null,null,null,null,null,null,null,null,null,null,null,"Cabernet Sauvignon","CSA",null,null,"SEDUCTION","SED",null,null,"TB25","TB25",null,null,"Vert","VER",null,null,"FLUTE OPTIMA","FLU"]
[null,null,null,null,null,null,null,null,null,null,null,null,null,null,null,null,null,null,null,null,"Carignan","CAR",null,null,"SENSATION","SEN",null,null,"TB37,5","TB37",null,null,"Jaune","JAU",null,null,"GDE TRAD","GDE"]
[null,null,null,null,null,null,null,null,null,null,null,null,null,null,null,null,null,null,null,null,"Chardonnay","CHA",null,null,"SPIRALE","SPI",null,null,"TB50","TB50",null,null,"Orange","ORA",null,null,"HELIX","HEL"]
[null,null,null,null,null,null,null,null,null,null,null,null,null,null,null,null,null,null,null,null,"Chasan","CSA",null,null,"TENDANCE","TEN",null,null,"TB75","TB75",null,null,"Violet","VIO",null,null,"LANGUEDOC","LAN"]
[null,null,null,null,null,null,null,null,null,null,null,null,null,null,null,null,null,null,null,null,"Chenin","CHE",null,null,"TRADITION","TRA",null,null,"TB100","TB100",null,null,"Blanc","BLC",null,null,"LITRE","LIT"]
[null,null,null,null,null,null,null,null,null,null,null,null,null,null,null,null,null,null,null,null,"Cinsault","CIN",null,null,"TUCCITANE","TUC",null,null,"TB150","TB150",null,null,"Creme","CRM",null,null,"LITRE HOLL","LHO"]
[null,null,null,null,null,null,null,null,null,null,null,null,null,null,null,null,null,null,null,null,"Cinsault Grenache","CIG",null,null,"UCCOAR","UCC",null,null,"TV25","TV25",null,null,"Cristal","CST",null,null,"LITRE VT","LVT"]
[null,null,null,null,null,null,null,null,null,null,null,null,null,null,null,null,null,null,null,null,"Colombard","COL",null,null,"VERONIQUE","VER",null,null,"TV37,5","TV37",null,null,"Coquelicot","COQ",null,null,"LUX NATURA","LUX"]
[null,null,null,null,null,null,null,null,null,null,null,null,null,null,null,null,null,null,null,null,"Grenache Cinsault","GRC",null,"Couleur","CHAMPAGNE","CH",null,null,"TV50","TV50",null,null,"Safran","SAF",null,null,"MAESTRIA","MAE"]
[null,null,null,null,null,null,null,null,null,null,null,null,null,null,null,null,null,null,null,null,"Grenache","GRE",null,null,"CANNELLE","CAN",null,null,"TV75","TV75",null,null,"Rose","RSE",null,null,"MAGNUM","MAG"]
[null,null,null,null,null,null,null,null,null,null,null,null,null,null,null,null,null,null,null,null,"Grenache Syrah","GRS",null,null,"EXTRA BLANC","EB",null,null,"TV100","TV100",null,"Decor","Liseré simple","LISS",null,null,"MEDIUM","MED"]
[null,null,null,null,null,null,null,null,null,null,null,null,null,null,null,null,null,null,null,null,"Malbec","MAL",null,null,"FEUILLE MORTE","FM",null,null,"TV150","TV150",null,null,"Liseré double","LISD",null,null,"NATURA","NAT"]
[null,null,null,null,null,null,null,null,null,null,null,null,null,null,null,null,null,null,null,null,"Marselan","MAR",null,null,"MI BLANC","MB",null,null,"LDV25","LV25",null,null,"Blason","BLAS",null,null,"NIMOISE","NIM"]
[null,null,null,null,null,null,null,null,null,null,null,null,null,null,null,null,null,null,null,null,"Merlot","MER",null,null,"MARRON","MA",null,null,"LDV37,5","LV37",null,null,null,null,null,null,"OPTIMA","OPT"]
[null,null,null,null,null,null,null,null,null,null,null,null,null,null,null,null,null,null,null,null,"Muscat","MUS",null,null,"SPECIALE","SP",null,null,"LDV50","LV50",null,null,null,null,null,null,"PRIVILEGE","PRI"]
[null,null,null,null,null,null,null,null,null,null,null,null,null,null,null,null,null,null,null,null,"Muscat Petit Grain","MPG",null,"Centilisation","20","20",null,null,"LDV75","LV75",null,null,null,null,null,null,"PROVENCE","PRO"]
[null,null,null,null,null,null,null,null,null,null,null,null,null,null,null,null,null,null,null,null,"Pinot","PIN",null,null,"25","25",null,null,"LDV100","LV100",null,null,null,null,null,null,"SABINE","SAB"]
[null,null,null,null,null,null,null,null,null,null,null,null,null,null,null,null,null,null,null,null,"Sauvignon","SAU",null,null,"37,5","37",null,null,"LDV150","LV150",null,null,null,null,null,null,"SARMENAC","SAR"]
[null,null,null,null,null,null,null,null,null,null,null,null,null,null,null,null,null,null,null,null,"Syrah","SYR",null,null,"50","50",null,"Decor Fermeture","Sans",null,null,null,null,null,null,null,"SEDDUCCION","SED"]
[null,null,null,null,null,null,null,null,null,null,null,null,null,null,null,null,null,null,null,null,"Viognier","VIO",null,null,"75","75",null,null,"BONNE NOUVELLE","BON NOUV",null,null,null,null,null,null,"SEDUCTION","SED"]
[null,null,null,null,null,null,null,null,null,null,null,null,null,null,null,null,null,null,null,"Edulcoration","00",null,null,null,"100","100",null,null,"CAP SOLEIL","CAP SOLE",null,null,null,null,null,null,"SENSATION","SEN"]
[null,null,null,null,null,null,null,null,null,null,null,null,null,null,null,null,null,null,null,null,"02","02",null,null,"150","150",null,null,"YUKO","YUKO",null,null,null,null,null,null,"SPIRALE","SPI"]
[null,null,null,null,null,null,null,null,null,null,null,null,null,null,null,null,null,null,null,null,"05","05",null,null,"225","225",null,null,"P201C","P201C",null,null,null,null,null,null,"TENDANCE","TEN"]
[null,null,null,null,null,null,null,null,null,null,null,null,null,null,null,null,null,null,null,null,"08","08",null,null,"300","300",null,null,"Liseré simple","LISS",null,null,null,null,null,null,"TRADITION","TRA"]
[null,null,null,null,null,null,null,null,null,null,null,null,null,null,null,null,null,null,null,null,"10","10",null,null,"500","500",null,null,"Liseré double","LISD",null,null,null,null,null,null,"TUCCITANE","TUC"]
[null,null,null,null,null,null,null,null,null,null,null,null,null,null,null,null,null,null,null,null,"15","15",null,null,"1000","1000",null,null,"Blason","BLAS",null,null,null,null,null,null,"UCCOAR","UCC"]
[null,null,null,null,null,null,null,null,null,null,null,null,null,null,null,null,null,null,null,null,"20","20",null,null,"2000","2000",null,"Decor Bouchon","Sans",null,null,null,null,null,null,"Centilisation","20","20"]
[null,null,null,null,null,null,null,null,null,null,null,null,null,null,null,null,null,null,null,null,"25","25",null,"Bouchage","CETIE","CET",null,null,"MEB CHAIS","MEB CHAI",null,null,null,null,null,null,"25","25"]
[null,null,null,null,null,null,null,null,null,null,null,null,null,null,null,null,null,null,null,null,"30","30",null,null,"BVS","BVS",null,null,"Propriété","MEB PROPRIETE",null,null,null,null,null,null,"37,5","37"]
[null,null,null,null,null,null,null,null,null,null,null,null,null,null,null,null,null,null,null,null,null,null,null,null,"SPECIALE","SPE",null,null,"Château","MEB CHÂTEAU",null,null,null,null,null,null,"50","50"]
[null,null,null,null,null,null,null,null,null,null,null,null,null,null,null,null,null,null,null,null,null,null,null,null,"VTOP LONG","VTL",null,null,"LIDL","LIDL",null,null,null,null,null,null,"75","75"]
[null,null,null,null,null,null,null,null,null,null,null,null,null,null,null,null,null,null,null,null,null,null,null,null,"VTOP COURT","VTC",null,null,"METRO","METRO",null,null,null,null,null,null,"100","100"]
[null,null,null,null,null,null,null,null,null,null,null,null,null,null,null,null,null,null,null,null,null,null,null,null,"UNITAP","UNI",null,null,"RIBEAUPIERRE","RIBEAUPIERRE",null,null,null,null,null,null,"150","150"]
[null,null,null,null,null,null,null,null,null,null,null,null,null,null,null,null,null,null,null,null,null,null,null,null,"ASEPTIQUE","ASE",null,null,"BRISE DE France","BRISE DE France",null,null,null,null,null,null,"225","225"]
[null,null,null,null,null,null,null,null,null,null,null,null,null,null,null,null,null,null,null,null,null,null,null,"Matiere","ALU","ALU",null,null,"AVANT-GARDE","AVANT-GARDE",null,null,null,null,null,null,"300","300"]
[null,null,null,null,null,null,null,null,null,null,null,null,null,null,null,null,null,null,null,null,null,null,null,null,"PEH","PEH",null,null,"ROCHE D'ARJAC","ROCHE D'ARJAC",null,null,null,null,null,null,"500","500"]
[null,null,null,null,null,null,null,null,null,null,null,null,null,null,null,null,null,null,null,null,null,null,null,null,"PET","PET",null,null,null,null,null,null,null,null,null,null,"1000","1000"]
[null,null,null,null,null,null,null,null,null,null,null,null,null,null,null,null,null,null,null,null,null,null,null,"Robinet","VTC","VTC",null,null,null,null,null,null,null,null,null,null,"2000","2000"]
[null,null,null,null,null,null,null,null,null,null,null,null,null,null,null,null,null,null,null,null,null,null,null,null,"VTL","VTL",null,null,null,null,null,null,null,null,null,"Decor","Ecru","ECR"]
[null,null,null,null,null,null,null,null,null,null,null,null,null,null,null,null,null,null,null,null,null,null,null,"Forme","CARRE","CAR",null,"Dimensions CPV","22H30",null,null,null,null,null,null,null,"Blanc","BLC"]
[null,null,null,null,null,null,null,null,null,null,null,null,null,null,null,null,null,null,null,null,null,null,null,null,"RECTANGULAIRE","REC",null,null,"25H43",null,null,null,null,null,null,null,"FLEXO","FLE"]
[null,null,null,null,null,null,null,null,null,null,null,null,null,null,null,null,null,null,null,null,null,null,null,null,null,null,null,null,"30H45",null,null,null,null,null,null,null,"OFFSET","OFF"]
[null,null,null,null,null,null,null,null,null,null,null,null,null,null,null,null,null,null,null,null,null,null,null,null,null,null,null,null,"30H50",null,null,null,null,null,null,null,"HI FLEX","HIF"]
[null,null,null,null,null,null,null,null,null,null,null,null,null,null,null,null,null,null,null,null,null,null,null,null,null,null,null,null,"30H60",null,null,null,null,null,null,"Finition","Standard"]
[null,null,null,null,null,null,null,null,null,null,null,null,null,null,null,null,null,null,null,null,null,null,null,null,null,null,null,null,"36H18",null,null,null,null,null,null,null,"Predecoupe","P"]
[null,null,null,null,null,null,null,null,null,null,null,null,null,null,null,null,null,null,null,null,null,null,null,null,null,null,null,null,"36H52",null,null,"Diametre SRB","29,5",null,null,null,"Ouverture","O"]
[null,null,null,null,null,null,null,null,null,null,null,null,null,null,null,null,null,null,null,null,null,null,null,null,null,null,null,null,null,null,null,null,"30",null,null,null,"Croisillon","C"]
[null,null,null,null,null,null,null,null,null,null,null,null,null,null,null,null,null,null,null,null,null,null,null,null,null,null,null,"Longueur FER","18",null,null,null,"30,5",null,null,null,"Guillotine","G"]
[null,null,null,null,null,null,null,null,null,null,null,null,null,null,null,null,null,null,null,null,null,null,null,null,null,null,null,null,"22",null,null,null,"31",null,null,null,"Alveole","A"]
[null,null,null,null,null,null,null,null,null,null,null,null,null,null,null,null,null,null,null,null,null,null,null,null,null,null,null,null,"24",null,null,null,"31,5",null,null,"Type BIB","Carré","C"]
[null,null,null,null,null,null,null,null,null,null,null,null,null,null,null,null,null,null,null,null,null,null,null,null,null,null,null,null,"32",null,null,null,"33",null,null,null,"Rectangulaire","R"]
[null,null,null,null,null,null,null,null,null,null,null,null,null,null,null,null,null,null,null,null,null,null,null,null,null,null,null,null,"35",null,null,null,"34",null,null,"Box","BIB","BIB"]
[null,null,null,null,null,null,null,null,null,null,null,null,null,null,null,null,null,null,null,null,null,null,null,null,null,null,null,null,"38",null,null,null,"36",null,null,null,"Bouteille","BOU"]
[null,null,null,null,null,null,null,null,null,null,null,null,null,null,null,null,null,null,null,null,null,null,null,null,null,null,null,null,"42",null,null,null,"37",null,null,null,"Cubis","CUB"]
[null,null,null,null,null,null,null,null,null,null,null,null,null,null,null,null,null,null,null,null,null,null,null,null,null,null,null,null,"44",null,null,null,null,null,null,"Bac","Avec Trous","T"]
[null,null,null,null,null,null,null,null,null,null,null,null,null,null,null,null,null,null,null,null,null,null,null,null,null,null,null,null,"49",null,null,"Hauteur SRB",40,null,null,null,"Sans Trous"]
[null,null,null,null,null,null,null,null,null,null,null,null,null,null,null,null,null,null,null,null,null,null,null,null,null,null,null,null,"50",null,null,null,45,null,null,"Nb trous","27","27"]
[null,null,null,null,null,null,null,null,null,null,null,null,null,null,null,null,null,null,null,null,null,null,null,null,null,null,null,null,"52",null,null,null,50,null,null,null,"45","45"]
[null,null,null,null,null,null,null,null,null,null,null,null,null,null,null,null,null,null,null,null,null,null,null,null,null,null,null,null,"54",null,null,null,55,null,null,null,"54","54"]
[null,null,null,null,null,null,null,null,null,null,null,null,null,null,null,null,null,null,null,null,null,null,null,null,null,null,null,null,"55",null,null,null,60,null,null,null,"65","65"]
[null,null,null,null,null,null,null,null,null,null,null,null,null,null,null,null,null,null,null,null,null,null,null,null,null,null,null,null,"60",null,null,null,65,null,null,"Type int","BX 150","BX 150"]
[null,null,null,null,null,null,null,null,null,null,null,null,null,null,null,null,null,null,null,null,null,null,null,null,null,null,null,null,null,null,null,null,70,null,null,null,"BG 150","BG 150"]
[null,null,null,null,null,null,null,null,null,null,null,null,null,null,null,null,null,null,null,null,null,null,null,null,null,null,null,null,null,null,null,null,null,null,null,null,"BX/BG 75","BX/BG 75"]
[null,null,null,null,null,null,null,null,null,null,null,null,null,null,null,null,null,null,null,null,null,null,null,null,null,null,null,"Diametre FER","22",null,null,null,null,null,null,null,"LITRE","LITRE"]
[null,null,null,null,null,null,null,null,null,null,null,null,null,null,null,null,null,null,null,null,null,null,null,null,null,null,null,null,"24",null,null,null,null,null,null,null,"CUBIS","CUBIS"]
[null,null,null,null,null,null,null,null,null,null,null,null,null,null,null,null,null,null,null,null,null,null,null,null,null,null,null,null,"25",null,null,null,null,null,null,null,"TETRA","TETRA"]
[null,null,null,null,null,null,null,null,null,null,null,null,null,null,null,null,null,null,null,null,null,null,null,null,null,null,null,null,"26",null,null,"Centil BIB/Tetra","TB25","TB25",null,null,"SARMENAC","SARMENAC"]
[null,null,null,null,null,null,null,null,null,null,null,null,null,null,null,null,null,null,null,null,null,null,null,null,null,null,null,null,"28",null,null,null,"TB100","TB100"]
[null,null,null,null,null,null,null,null,null,null,null,null,null,null,null,null,null,null,null,null,null,null,null,null,null,null,null,null,"30",null,null,null,"TB225","TB225"]
[null,null,null,null,null,null,null,null,null,null,null,null,null,null,null,null,null,null,null,null,null,null,null,null,null,null,null,null,"36",null,null,null,"TB300","TB300"]
[null,null,null,null,null,null,null,null,null,null,null,null,null,null,null,null,null,null,null,null,null,null,null,null,null,null,null,null,null,null,null,null,"TB500","TB500"]
[null,null,null,null,null,null,null,null,null,null,null,null,null,null,null,null,null,null,null,null,null,null,null,null,null,null,null,null,null,null,null,null,"TB1000","TB1000"]
[null,null,null,null,null,null,null,null,null,null,null,null,null,null,null,null,null,null,null,null,null,null,null,null,null,null,null,null,null,null,null,null,"TB2000","TB2000"]
[null,null,null,null,null,null,null,null,null,null,null,null,null,null,null,null,null,null,null,null,null,null,null,null,null,null,null,"Hauteur BO","36",null,null,null,"TV25","TV25"]
[null,null,null,null,null,null,null,null,null,null,null,null,null,null,null,null,null,null,null,null,null,null,null,null,null,null,null,null,"37",null,null,null,"TV100","TV100"]
[null,null,null,null,null,null,null,null,null,null,null,null,null,null,null,null,null,null,null,null,null,null,null,null,null,null,null,null,"38",null,null,null,"TV225","TV225"]
[null,null,null,null,null,null,null,null,null,null,null,null,null,null,null,null,null,null,null,null,null,null,null,null,null,null,null,null,"42",null,null,null,"TV300","TV300"]
[null,null,null,null,null,null,null,null,null,null,null,null,null,null,null,null,null,null,null,null,null,null,null,null,null,null,null,null,"43",null,null,null,"TV500","TV500"]
[null,null,null,null,null,null,null,null,null,null,null,null,null,null,null,null,null,null,null,null,null,null,null,null,null,null,null,null,"44",null,null,null,"TV1000","TV1000"]
[null,null,null,null,null,null,null,null,null,null,null,null,null,null,null,null,null,null,null,null,null,null,null,null,null,null,null,null,"49",null,null,null,"TV2000","TV2000"]
[null,null,null,null,null,null,null,null,null,null,null,null,null,null,null,null,null,null,null,null,null,null,null,null,null,null,null,null,null,null,null,null,"LDV25","LV25"]
[null,null,null,null,null,null,null,null,null,null,null,null,null,null,null,null,null,null,null,null,null,null,null,null,null,null,null,"Diametre BO","22",null,null,null,"LDV100","LV100"]
[null,null,null,null,null,null,null,null,null,null,null,null,null,null,null,null,null,null,null,null,null,null,null,null,null,null,null,null,"22,5",null,null,null,"LDV225","LV225"]
[null,null,null,null,null,null,null,null,null,null,null,null,null,null,null,null,null,null,null,null,null,null,null,null,null,null,null,null,"23",null,null,null,"LDV300","LV300"]
[null,null,null,null,null,null,null,null,null,null,null,null,null,null,null,null,null,null,null,null,null,null,null,null,null,null,null,null,"23,5",null,null,null,"LDV500","LV500"]
[null,null,null,null,null,null,null,null,null,null,null,null,null,null,null,null,null,null,null,null,null,null,null,null,null,null,null,null,"24",null,null,null,"LDV1000","LV1000"]
[null,null,null,null,null,null,null,null,null,null,null,null,null,null,null,null,null,null,null,null,null,null,null,null,null,null,null,null,"24,5",null,null,null,"LDV2000","LV2000"]
[null,null,null,null,null,null,null,null,null,null,null,null,null,null,null,null,null,null,null,null,null,null,null,null,null,null,null,null,"25"]
[null,null,null,null,null,null,null,null,null,null,null,null,null,null,null,null,null,null,null,null,null,null,null,null,null,null,null,null,null,null,null,"Diam PION",16]
[null,null,null,null,null,null,null,null,null,null,null,null,null,null,null,null,null,null,null,null,null,null,null,null,null,null,null,null,null,null,null,null,30]
[null,null,null,null,null,null,null,null,null,null,null,null,null,null,null,null,null,null,null,null,null,null,null,null,null,null,null,"Dimensions CAP STREAM",null,null,null,null,40]

{"sheet":"Generateur Designation","index":3,"n_rows":139,"n_cols":14,"rows_kept":139,"cut":false,"hidden":false,"merged":[]}
[]
[null,"PF &VRAC",null,null,null,null,"faire rechv avec si - +"]
[null,null,"Categorie app","App/Cepage","Coul","Degre","Edulcoration","Nom/Cuvee"]
[null,null,"AOP","Vin d'Espagne","Blanc",13.5,"00","AUCHAN"]
[null,null,null,null,null,null,null,{"$f":"IF(LEN(H4)>11,\"Nombre de caractères trop grand\",\"Nombre de caractères ok\")","v":"Nombre de caractères ok"}]
[null,null,"Code",null,null,"Nombre de caractère"]
[null,null,{"$f":"CONCATENATE(VLOOKUP(C4,Nomenclature_design_art!$D$15:$E$18,2,),\" \",VLOOKUP(D4,Nomenclature_design_art!$D$19:$E$74,2,),\" \",VLOOKUP(E4,Nomenclature_design_art!$D$10:$E$14,2,),\" \",F4,\"+\",G4,\" \",H4)","v":"AOP ESP BL 13,5+00 AUCHAN"},null,null,{"$f":"LEN(C7)","v":25}]
[]
[]
[null,"MS"]
[]
[null,"Type MS","Famille","Couleur","Centilisation","Bouchage","Libre (18)"]
[null,"CONTENANT","Cubis","MARRON","500","BVS","JFD"]
[null,null,null,null,null,null,{"$f":"IF(LEN(G13)>18,\"Nombre de caractères trop grand\",\"Nombre de caractères ok\")","v":"Nombre de caractères ok"}]
[null,null,"Code",null,null,"Nombre de caractère"]
[null,null,{"$f":"CONCATENATE(VLOOKUP(C13,Nomenclature_design_art_MS!$Y$5:$Z$12,2,),\" \",VLOOKUP(D13,Nomenclature_design_art_MS!$Y$58:$Z$64,2,),VLOOKUP(E13,Nomenclature_design_art_MS!$Y$65:$Z$76,2,),\" \",VLOOKUP(F13,Nomenclature_design_art_MS!$Y$77:$Z$83,2),G13)","v":"CU MA500 BVSJFD"},null,null,{"$f":"LEN(C16)","v":15}]
[]
[null,"Type MS","Famille","Matière","Forme","Robinet","Centilisation","Bouchage","Libre (8)"]
[null,"CONTENANT","Outre","ALU","CARRE","VTC","2000","BVS","JFD"]
[null,null,null,null,null,null,null,null,{"$f":"IF(LEN(I19)>8,\"Nombre de caractères trop grand\",\"Nombre de caractères ok\")","v":"Nombre de caractères ok"}]
[null,null,"Code",null,null,"Nombre de caractère"]
[null,null,{"$f":"CONCATENATE(VLOOKUP(C19,Nomenclature_design_art_MS!$Y$5:$Z$12,2,),\" \",VLOOKUP(D19,Nomenclature_design_art_MS!$Y$84:$Z$86,2,),VLOOKUP(E19,Nomenclature_design_art_MS!$Y$89:$Z$90,2,),\" \",VLOOKUP(F19,Nomenclature_design_art_MS!$Y$87:$Z$88,2),G19,\" \",VLOOKUP(H19,Nomenclature_design_art_MS!$Y$77:$Z$83,2),\" \",I19)","v":"OU ALUCAR VTC2000 BVS JFD"},null,null,{"$f":"LEN(C22)","v":25}]
[]
[null,"Type MS","Famille (6 et 4)","Centilisation","Libre (21)"]
[null,"CONTENANT","Pouch 6","2000","JFD"]
[null,null,null,null,{"$f":"IF(LEN(E25)>21,\"Nombre de caractères trop grand\",\"Nombre de caractères ok\")","v":"Nombre de caractères ok"}]
[null,null,"Code",null,null,"Nombre de caractère"]
[null,null,{"$f":"CONCATENATE(VLOOKUP(C25,Nomenclature_design_art_MS!$Y$5:$Z$12,2,),\" \",D25,\" \",E25)","v":"P6 2000 JFD"},null,null,{"$f":"LEN(C28)","v":11}]
[]
[null,"Type MS","Famille (bas et pri)","Centilisation","Bouchage (uni et asep)","Libre (19)"]
[null,"CONTENANT","Tetra Prisma","100","UNITAP","JFD"]
[null,null,null,null,null,{"$f":"IF(LEN(F31)>19,\"Nombre de caractères trop grand\",\"Nombre de caractères ok\")","v":"Nombre de caractères ok"}]
[null,null,"Code",null,null,"Nombre de caractère"]
[null,null,{"$f":"CONCATENATE(VLOOKUP(C31,Nomenclature_design_art_MS!$Y$5:$Z$12,2,),\" \",D31,\" \",VLOOKUP(E31,Nomenclature_design_art_MS!$Y$77:$Z$83,2,),\" \",F31)","v":"TP 100 UNI JFD"},null,null,{"$f":"LEN(C34)","v":14}]
[]
[null,"Type MS","Famille V et PET)","Type","Modele","Couleur","Centilisation","Bouchage","Libre (12)",null,null,null,"BTV : champ libre pour Ecova/L+G, degarni, diametre bague si speciale, crantée","=> MOS 474 supp modele et degarni"]
[null,"CONTENANT","Bouteille Verre","Bordelaise","OPTIMA","FEUILLE MORTE","75","BVS"]
[null,null,null,null,null,null,null,null,{"$f":"IF(LEN(I37)>12,\"Nombre de caractères trop grand\",\"Nombre de caractères ok\")","v":"Nombre de caractères ok"}]
[null,null,"Code",null,null,"Nombre de caractère"]
[null,null,{"$f":"CONCATENATE(VLOOKUP(C37,Nomenclature_design_art_MS!$Y$5:$Z$12,2,),VLOOKUP(D37,Nomenclature_design_art_MS!$Y$13:$Z$16,2,),VLOOKUP(E37,Nomenclature_design_art_MS!$Y$17:$Z$57,2,),\" \",VLOOKUP(F37,Nomenclature_design_art_MS!$Y$58:$Z$64,2),G37,\" \",VLOOKUP(H37,Nomenclature_design_art_MS!$Y$77:$Z$83,2,),\" \",I37)","v":"BVXOPT FM75 BVS "},null,null,{"$f":"LEN(C40)","v":16}]
[]
[]
[null,"Type MS","Famille","Nature","Diametre","\"X\" ","Longueur","Qualite/Couleur","Decor (15)","supp MOS"]
[null,"FERMETURE","Bouchon","TECHNIQUE","22,5","X","42","3eme","LIDL"]
[null,null,null,null,null,null,null,null,{"$f":"IF(LEN(I44)>15,\"Nombre de caractères trop grand\",\"Nombre de caractères ok\")","v":"Nombre de caractères ok"}]
[null,null,"Code",null,null,"Nombre de caractère"]
[null,null,{"$f":"CONCATENATE(VLOOKUP(C44,Nomenclature_design_art_MS!$AC$5:$AD$8,2,),\" \",VLOOKUP(D44,Nomenclature_design_art_MS!$AC$9:$AD$17,2,),\" \",E44,F44,G44,\" \",VLOOKUP(H44,Nomenclature_design_art_MS!$AC$18:$AD$44,2,),\" \",VLOOKUP(I44,Nomenclature_design_art_MS!$AC$76:$AD$85,2,))","v":"BO TE 22,5X42 3 LIDL"},null,null,{"$f":"LEN(C47)","v":20}]
[]
[null,"Type MS","Famille (CPV & Op)","Nature","Dimensions","CRD/Centil","Qualite/Couleur","Decor (8)"]
[null,"FERMETURE","Opercule","PVC","30H45","TB100","Coquelicot","P201C",null,"supp MOS"]
[]
[null,null,"Code",null,null,"Nombre de caractère"]
[null,null,{"$f":"CONCATENATE(VLOOKUP(C50,Nomenclature_design_art_MS!$AC$5:$AD$8,2,),\" \",VLOOKUP(D50,Nomenclature_design_art_MS!$AC$9:$AD$17,2,),\" \",E50,\" \",VLOOKUP(F50,Nomenclature_design_art_MS!$AC$45:$AD$68,2,),\" \",VLOOKUP(G50,Nomenclature_design_art_MS!$AC$18:$AD$44,2,),\" \",VLOOKUP(H50,Nomenclature_design_art_MS!$AC$68:$AD$75,2,))","v":"OP PV 30H45 TB100 COQ P201C"},null,null,{"$f":"LEN(C53)","v":27}]
[]
[null,"Type MS","Famille ","Nature","Dimensions","Qualite/Couleur","Decor (8)"]
[null,"FERMETURE","Cap Stream","PVC","30H45","Coquelicot","P201C",null,"attente dim de PG"]
[]
[null,null,"Code",null,null,"Nombre de caractère"]
[null,null,{"$f":"CONCATENATE(VLOOKUP(C56,Nomenclature_design_art_MS!$AC$5:$AD$8,2,),\" \",VLOOKUP(D56,Nomenclature_design_art_MS!$AC$9:$AD$17,2,),\" \",E56,\" \",VLOOKUP(F56,Nomenclature_design_art_MS!$AC$18:$AD$44,2,),\" \",VLOOKUP(G56,Nomenclature_design_art_MS!$AC$68:$AD$75,2,))","v":"CS PV 30H45 COQ P201C"},null,null,{"$f":"LEN(C59)","v":21}]
[]
[null,"Type MS","Nature (hors bib et tetra)","CRD/Centil","Diametre","Hauteur","Couleur","Decor (8)"]
[null,"SURBOUCHAGE","PVC","TV50","30",55,"Coquelicot"]
[null,null,null,null,null,null,null,{"$f":"IF(LEN(H62)>8,\"Nombre de caractères trop grand\",\"Nombre de caractères ok\")","v":"Nombre de caractères ok"}]
[null,null,"Code",null,null,"Nombre de caractère"]
[null,null,{"$f":"CONCATENATE(\"CP\",\" \",VLOOKUP(C62,Nomenclature_design_art_MS!$AG$5:$AH$9,2,),\" \",VLOOKUP(D62,Nomenclature_design_art_MS!$AG$10:$AH$41,2,),\" \",E62,\"X\",F62,\" \",VLOOKUP(G62,Nomenclature_design_art_MS!$AG$42:$AH$59,2,),\" \",H62)","v":"CP PVC TV50 30X55 COQ "},null,null,{"$f":"LEN(C65)","v":22}]
[]
[null,"Type MS","Nature (bib et tetra)","CRD/Centil","Diametre"]
[null,"SURBOUCHAGE","PVC","TB2000",16]
[]
[null,null,"Code",null,null,"Nombre de caractère"]
[null,null,{"$f":"CONCATENATE(\"VI\",\" \",VLOOKUP(C68,Nomenclature_design_art_MS!$AG$5:$AH$9,2,),\" \",D68,\" \",E68)","v":"VI PVC TB2000 16"},null,null,{"$f":"LEN(C71)","v":16}]
[]
[null,"Type MS","Nature","Type","Capacité","Contenant","Modele","Centilisation","Decor","Finition","Libre (5)"]
[null,"EMBALLAGE","CARTON BOUTEILLE","Debout","12","BX","AUTHENTIQ","100","Ecru","Standard","AUCHAN"]
[null,null,null,null,null,null,null,null,null,null,{"$f":"IF(F77>30,\"Nombre de caractères trop grand\",\"Nombre de caractères ok\")","v":"Nombre de caractères ok"}]
[null,null,"Code",null,null,"Nombre de caractère"]
[null,null,{"$f":"CONCATENATE(VLOOKUP(C74,Nomenclature_design_art_MS!$AK$5:$AL$15,2,),\" \",VLOOKUP(D74,Nomenclature_design_art_MS!$AK$16:$AL$17,2,),VLOOKUP(E74,Nomenclature_design_art_MS!$AK$18:$AL$30,2,),\" \",VLOOKUP(F74,Nomenclature_design_art_MS!$AK$31:$AL$35,2,),\" \",VLOOKUP(G74,Nomenclature_design_art_MS!$AK$36:$AL$75,2,),\" \",VLOOKUP(H74,Nomenclature_design_art_MS!$AK$76:$AL$87,2,),\" \",VLOOKUP(I74,Nomenclature_design_art_MS!$AK$88:$AL$92,2,),\" \",VLOOKUP(J74,Nomenclature_design_art_MS!$AK$93:$AL$98,2,),\" \",K74)","v":"CAR D12 BX AUT 100 ECR  AUCHAN"},null,null,{"$f":"LEN(C77)","v":30}]
[]
[null,"Type MS","Nature","Type","Capacité","Contenant","Modele","Centilisation","Finition","Libre (10)","supp mos type et capacite"]
[null,"EMBALLAGE","CAISSE BOIS","Debout","12","BX","AUTHENTIQ","100","Guillotine"]
[null,null,null,null,null,null,null,null,null,{"$f":"IF(F83>30,\"Nombre de caractères trop grand\",\"Nombre de caractères ok\")","v":"Nombre de caractères ok"}]
[null,null,"Code",null,null,"Nombre de caractère"]
[null,null,{"$f":"CONCATENATE(VLOOKUP(C80,Nomenclature_design_art_MS!$AK$5:$AL$15,2,),\" \",VLOOKUP(D80,Nomenclature_design_art_MS!$AK$16:$AL$17,2,),VLOOKUP(E80,Nomenclature_design_art_MS!$AK$18:$AL$30,2,),\" \",VLOOKUP(F80,Nomenclature_design_art_MS!$AK$31:$AL$35,2,),\" \",VLOOKUP(G80,Nomenclature_design_art_MS!$AK$36:$AL$75,2,),\" \",VLOOKUP(H80,Nomenclature_design_art_MS!$AK$76:$AL$87,2,),\" \",VLOOKUP(I80,Nomenclature_design_art_MS!$AK$93:$AL$98,2,),\" \",J80)","v":"CAI D12 BX AUT 100 G "},null,null,{"$f":"LEN(C83)","v":21}]
[]
[null,"Type MS","Nature","Capacité","Contenant","Modele","Centilisation","Decor","Libre (8)"]
[null,"EMBALLAGE","REGROUPEMENT","2","BIB","Rien","500","Ecru","LIDL"]
[null,null,null,null,null,null,null,null,{"$f":"IF(E89>30,\"Nombre de caractères trop grand\",\"Nombre de caractères ok\")","v":"Nombre de caractères ok"}]
[null,null,"Code",null,"Nombre de caractère"]
[null,null,{"$f":"CONCATENATE(VLOOKUP(C86,Nomenclature_design_art_MS!$AK$5:$AL$15,2,),\" \",VLOOKUP(D86,Nomenclature_design_art_MS!$AK$18:$AL$30,2,),\" \",VLOOKUP(E86,Nomenclature_design_art_MS!$AK$31:$AL$35,2,),\" \",VLOOKUP(F86,Nomenclature_design_art_MS!$AK$36:$AL$75,2,),\" \",VLOOKUP(G86,Nomenclature_design_art_MS!$AK$76:$AL$87,2,),\" \",VLOOKUP(H86,Nomenclature_design_art_MS!$AK$88:$AL$92,2,),\" \",I86)","v":"REG 2 BIB  500 ECR LIDL"},null,{"$f":"LEN(C89)","v":23}]
[]
[null,"Type MS","Nature","Centilisation","Type BIB","Libre (19)"]
[null,"EMBALLAGE","APLAT BIB","1000","Carré"]
[null,null,null,null,null,{"$f":"IF(LEN(F92)>19,\"Nombre de caractères trop grand\",\"Nombre de caractères ok\")","v":"Nombre de caractères ok"}]
[null,null,"Code",null,"Nombre de caractère"]
[null,null,{"$f":"CONCATENATE(VLOOKUP(C92,Nomenclature_design_art_MS!$AK$5:$AL$15,2,),\" \",VLOOKUP(D92,Nomenclature_design_art_MS!$AK$76:$AL$87,2,),\" \",VLOOKUP(E92,Nomenclature_design_art_MS!$AK$99:$AL$100,2,),\" \",F92)","v":"BIB 1000 C "},null,{"$f":"LEN(C95)","v":11}]
[]
[null,"Type MS","Nature","Capacité","Type box","Centilisation","Decor","Libre (11)"]
[null,"EMBALLAGE","BOX","108","Bouteille","2000","Blanc"]
[null,null,null,null,null,null,null,{"$f":"IF(E101>30,\"Nombre de caractères trop grand\",\"Nombre de caractères ok\")","v":"Nombre de caractères ok"}]
[null,null,"Code",null,"Nombre de caractère"]
[null,null,{"$f":"CONCATENATE(VLOOKUP(C98,Nomenclature_design_art_MS!$AK$5:$AL$15,2,),VLOOKUP(D98,Nomenclature_design_art_MS!$AK$18:$AL$30,2,),\" \",VLOOKUP(E98,Nomenclature_design_art_MS!$AK$101:$AL$103,2,),F98,\" \",VLOOKUP(G98,Nomenclature_design_art_MS!$AK$88:$AL$92,2,),\" \",H98)","v":"BOX108 BOU2000 BLC "},null,{"$f":"LEN(C101)","v":19}]
[]
[null,"Type MS","Nature","Trous ?","Nb de trous","Decor","Libre (18)"]
[null,"EMBALLAGE","BAC PRESENTOIR","Avec Trous","27","Blanc"]
[null,null,null,null,null,null,{"$f":"IF(LEN(G104)>18,\"Nombre de caractères trop grand\",\"Nombre de caractères ok\")","v":"Nombre de caractères ok"}]
[null,null,"Code",null,"Nombre de caractère"]
[null,null,{"$f":"CONCATENATE(VLOOKUP(C104,Nomenclature_design_art_MS!$AK$5:$AL$15,2,),VLOOKUP(D104,Nomenclature_design_art_MS!$AK$104:$AL$105,2,),\" \",VLOOKUP(E104,Nomenclature_design_art_MS!$AK$106:$AL$109,2,),\" \",VLOOKUP(F104,Nomenclature_design_art_MS!$AK$88:$AL$92,2,),\" \",G104)","v":"BACT 27 BLC "},null,{"$f":"LEN(C107)","v":12}]
[]
[null,"Type MS","Nature (crois, alv, plaq, guill,film)","Capacité","Type"]
[null,"EMBALLAGE","FILM","3","TETRA"]
[]
[null,null,"Code",null,"Nombre de caractère"]
[null,null,{"$f":"CONCATENATE(VLOOKUP(C110,Nomenclature_design_art_MS!$AK$5:$AL$15,2,),\" \",VLOOKUP(D110,Nomenclature_design_art_MS!$AK$18:$AL$30,2,),\" \",E110)","v":"FLM 3 TETRA"},null,{"$f":"LEN(C113)","v":11}]
[]
[null,"Type MS","Famille","Nature","Longueur","Largeur","Libre"]
[null,"AGRES","Palette","EUR","600","800","NIMP15"]
[null,null,null,null,null,null,{"$f":"IF(LEN(G116)>10,\"Nombre de caractères trop grand\",\"Nombre de caractères ok\")","v":"Nombre de caractères ok"}]
[null,null,"Code",null,null,"Nombre de caractère"]
[null,null,{"$f":"CONCATENATE(VLOOKUP(C116,Nomenclature_design_art_MS!$AS$5:$AT$7,2,),\" \",VLOOKUP(D116,Nomenclature_design_art_MS!$AS$8:$AT$15,2,),\" \",E116,IF(C116=\"Emballages\",\"\",\"x\"),F116,\" \",G116)","v":"PAL EUR 600x800 NIMP15"},null,null,{"$f":"LEN(C119)","v":22}]
[]
[]
[]
[null,"Type MS","Famille (E, CE, Coll, Med)","Nature","Hauteur","Largeur","Degré","Mill","Libre"]
[null,"HABILLAGE","Etiquette","Traditionnel",120,90]
[null,null,null,null,{"$f":"IF(LEN(E124)>3,\"Nombre de caractères trop grand\",\"Nombre de caractères ok\")","v":"Nombre de caractères ok"},{"$f":"IF(LEN(F124)>3,\"Nombre de caractères trop grand\",\"Nombre de caractères ok\")","v":"Nombre de caractères ok"},null,{"$f":"IF(LEN(H124)>2,\"Nombre de caractères trop grand\",\"Nombre de caractères ok\")","v":"Nombre de caractères ok"},{"$f":"IF(F127>30,\"Nombre de caractères trop grand\",\"Nombre de caractères ok\")","v":"Nombre de caractères ok"}]
[null,null,"Code",null,null,"Nombre de caractère"]
[null,null,{"$f":"CONCATENATE(VLOOKUP(C124,Nomenclature_design_art_MS!$AO$5:$AP$12,2,),VLOOKUP(D124,Nomenclature_design_art_MS!$AO$13:$AP$16,2,),\" \",E124,\"x\",F124,\" \",G124,\" \",H124,\" \",I124)","v":"ETIT 120x90   "},null,null,{"$f":"LEN(C127)","v":14}]
[]
[null,"Type MS","Famille","Nature","Hauteur","Largeur","Libre"]
[null,"HABILLAGE","Pendeloque","Pyramide",120,90]
[null,null,null,null,{"$f":"IF(LEN(E130)>3,\"Nombre de caractères trop grand\",\"Nombre de caractères ok\")","v":"Nombre de caractères ok"},{"$f":"IF(LEN(F130)>3,\"Nombre de caractères trop grand\",\"Nombre de caractères ok\")","v":"Nombre de caractères ok"},{"$f":"IF(F133>30,\"Nombre de caractères trop grand\",\"Nombre de caractères ok\")","v":"Nombre de caractères ok"}]
[null,null,"Code",null,null,"Nombre de caractère"]
[null,null,{"$f":"CONCATENATE(VLOOKUP(C130,Nomenclature_design_art_MS!$AO$5:$AP$12,2,),VLOOKUP(D130,Nomenclature_design_art_MS!$AO$13:$AP$16,2,),\" \",E130,\"x\",F130,\" \",G130)","v":"PENP  120x90 "},null,null,{"$f":"LEN(C133)","v":13}]
[]
[null,"Type MS","Famille (sti & aff, paille)","Hauteur","Largeur","Libre"]
[null,"HABILLAGE","Sticker",120,90]
[null,null,null,{"$f":"IF(LEN(D136)>3,\"Nombre de caractères trop grand\",\"Nombre de caractères ok\")","v":"Nombre de caractères ok"},{"$f":"IF(LEN(E136)>3,\"Nombre de caractères trop grand\",\"Nombre de caractères ok\")","v":"Nombre de caractères ok"},{"$f":"IF(E139>30,\"Nombre de caractères trop grand\",\"Nombre de caractères ok\")","v":"Nombre de caractères ok"}]
[null,null,"Code",null,"Nombre de caractère"]
[null,null,{"$f":"CONCATENATE(VLOOKUP(C136,Nomenclature_design_art_MS!$AO$5:$AP$12,2,),\" \",D136,\"x\",E136,\" \",F136)","v":"STK 120x90 "},null,{"$f":"LEN(C139)","v":11}]

{"sheet":"Generateur","index":4,"n_rows":37,"n_cols":2,"rows_kept":37,"cut":false,"hidden":false,"merged":[]}
["Type MS","Famille"]
["CONTENANT","Cubis"]
["CONTENANT","Outre"]
["CONTENANT","Pouch 6"]
["CONTENANT","Pouch 4"]
["CONTENANT","Tetra Prisma"]
["CONTENANT","Tetra Baseline"]
["CONTENANT","Bouteille Verre"]
["CONTENANT","Bouteille PET"]
["FERMETURE","Bouchon"]
["FERMETURE","Capsule a vis"]
["FERMETURE","Opercule"]
["FERMETURE","Cap Stream"]
["SURBOUCHAGE","Capsule"]
["SURBOUCHAGE","Pion Fiscal"]
["EMBALLAGE","CARTON BOUTEILLE"]
["EMBALLAGE","CAISSE BOIS"]
["EMBALLAGE","REGROUPEMENT"]
["EMBALLAGE","APLAT BIB"]
["EMBALLAGE","BOX"]
["EMBALLAGE","BAC PRESENTOIR"]
["EMBALLAGE","CROISILLON"]
["EMBALLAGE","ALVEOLE"]
["EMBALLAGE","PLAQUE"]
["EMBALLAGE","GUILLOTINE"]
["EMBALLAGE","FILM"]
["AGRES","Palette"]
["AGRES","Emballages"]
["AGRES","Intercalaires"]
["HABILLAGE","Etiquette"]
["HABILLAGE","Contre Etiquette"]
["HABILLAGE","Collerette"]
["HABILLAGE","Medaille"]
["HABILLAGE","Sticker"]
["HABILLAGE","Affichette"]
["HABILLAGE","Paille"]
["HABILLAGE","Pendeloque"]